{"text_format":"3","workbook":"xlsx","n_sheets":1,"sheets":["Osobni mjesečni proračun"],"read":"whole","date_system":"1900"}

{"sheet":"Osobni mjesečni proračun","index":0,"n_rows":62,"n_cols":10,"rows_kept":62,"merged":[[0,1,0,9],[2,1,4,1],[2,2,2,3],[2,7,2,8],[3,2,3,3],[3,7,3,8],[4,2,4,3],[4,6,4,8],[5,1,7,1],[5,2,5,3],[5,7,5,8],[6,2,6,3],[6,7,6,8],[7,2,7,3],[7,6,7,8],[20,6,20,9],[21,1,21,4],[29,6,29,9],[31,1,31,4],[36,6,36,9],[38,1,38,4],[42,6,42,9],[44,1,44,4],[48,6,48,9],[52,1,52,4],[55,6,55,9]]}
[null,"Osobni mjesečni proračun"]
[]
[null,"PREDVIĐENI MJESEČNI PRIHOD","Prihod 1",null,{"v":2500,"d":"2,500 kn"},null,"UKUPNI PREDVIĐENI TROŠKOVI ","(Predviđeni prihodi minus troškovi)",null,{"$f":"SUM(C21,C31,C38,C44,C52,C62,H20,H29,H36,H42,H48,H55)","v":{"v":2060,"d":"2,060 kn"}}]
[null,null,"Dodatni prihodi",null,{"v":500,"d":"500 kn"},null,"UKUPNI STVARNI TROŠKOVI ","(Stvarni prihodi minus troškovi)",null,{"$f":"SUM(D21,D31,D38,D44,D52,D62,I20,I29,I36,I42,I48,I55)","v":{"v":2040,"d":"2,040 kn"}}]
[null,null,"Ukupni mjesečni prihodi",null,{"$f":"SUM(E3:E4)","v":{"v":3000,"d":"3,000 kn"}},null,"Razlika ukupnih troškova",null,null,{"$f":"SUM(E21,E31,E38,E44,E52,E62,J20,J29,J36,J42,J48,J55)","v":{"v":20,"d":"20 kn"}}]
[null,"STVARNI MJESEČNI PRORAČUN","Prihod 1",null,{"v":2500,"d":"2,500 kn"},null,"PREDVIĐENI SALDO","(Predviđeni prihodi minus troškovi)",null,{"$f":"E5-J3","v":{"v":940,"d":"940 kn"}}]
[null,null,"Dodatni prihodi",null,{"v":500,"d":"500 kn"},null,"STVARNI SALDO","(Stvarni prihodi minus troškovi)",null,{"$f":"E8-J4","v":{"v":960,"d":"960 kn"}}]
[null,null,"Ukupni mjesečni prihodi",null,{"$f":"SUM(E6:E7)","v":{"v":3000,"d":"3,000 kn"}},null,"RAZLIKA SALDA (stvarno minus predviđeno)",null,null,{"$f":"J7-J6","v":{"v":20,"d":"20 kn"}}]
[]
[null,"STANOVANJE","Predviđeni trošak","Stvarni trošak","Razlika",null,"ZABAVA","Predviđeni trošak","Stvarni trošak","Razlika"]
[null,"Hipoteka ili najamnina",{"v":1500,"d":"1,500 kn"},{"v":1400,"d":"1,400 kn"},{"$f":"Stanovanje[[#This Row],[Predviđeni trošak]]-Stanovanje[[#This Row],[Stvarni trošak]]","v":{"v":100,"d":"100 kn"}},null,"Video/DVD",{"v":0,"d":"0 kn"},{"v":50,"d":"50 kn"},{"$f":"Zabava[[#This Row],[Predviđeni trošak]]-Zabava[[#This Row],[Stvarni trošak]]","v":{"v":-50,"d":"-50 kn"}}]
[null,"Telefon",{"v":60,"d":"60 kn"},{"v":100,"d":"100 kn"},{"$f":"Stanovanje[[#This Row],[Predviđeni trošak]]-Stanovanje[[#This Row],[Stvarni trošak]]","v":{"v":-40,"d":"-40 kn"}},null,"CD-ovi",null,null,{"$f":"Zabava[[#This Row],[Predviđeni trošak]]-Zabava[[#This Row],[Stvarni trošak]]","v":{"v":0,"d":"0 kn"}}]
[null,"Struja",{"v":50,"d":"50 kn"},{"v":60,"d":"60 kn"},{"$f":"Stanovanje[[#This Row],[Predviđeni trošak]]-Stanovanje[[#This Row],[Stvarni trošak]]","v":{"v":-10,"d":"-10 kn"}},null,"Filmovi",null,null,{"$f":"Zabava[[#This Row],[Predviđeni trošak]]-Zabava[[#This Row],[Stvarni trošak]]","v":{"v":0,"d":"0 kn"}}]
[null,"Plin",{"v":200,"d":"200 kn"},{"v":180,"d":"180 kn"},{"$f":"Stanovanje[[#This Row],[Predviđeni trošak]]-Stanovanje[[#This Row],[Stvarni trošak]]","v":{"v":20,"d":"20 kn"}},null,"Koncerti",null,null,{"$f":"Zabava[[#This Row],[Predviđeni trošak]]-Zabava[[#This Row],[Stvarni trošak]]","v":{"v":0,"d":"0 kn"}}]
[null,"Voda i komunalna naknada",null,null,{"$f":"Stanovanje[[#This Row],[Predviđeni trošak]]-Stanovanje[[#This Row],[Stvarni trošak]]","v":{"v":0,"d":"0 kn"}},null,"Sportska događanja",null,null,{"$f":"Zabava[[#This Row],[Predviđeni trošak]]-Zabava[[#This Row],[Stvarni trošak]]","v":{"v":0,"d":"0 kn"}}]
[null,"Kabelska TV",null,null,{"$f":"Stanovanje[[#This Row],[Predviđeni trošak]]-Stanovanje[[#This Row],[Stvarni trošak]]","v":{"v":0,"d":"0 kn"}},null,"Kazalište",null,null,{"$f":"Zabava[[#This Row],[Predviđeni trošak]]-Zabava[[#This Row],[Stvarni trošak]]","v":{"v":0,"d":"0 kn"}}]
[null,"Odvoz smeća",null,null,{"$f":"Stanovanje[[#This Row],[Predviđeni trošak]]-Stanovanje[[#This Row],[Stvarni trošak]]","v":{"v":0,"d":"0 kn"}},null,"Drugo",null,null,{"$f":"Zabava[[#This Row],[Predviđeni trošak]]-Zabava[[#This Row],[Stvarni trošak]]","v":{"v":0,"d":"0 kn"}}]
[null,"Održavanja i popravci",null,null,{"$f":"Stanovanje[[#This Row],[Predviđeni trošak]]-Stanovanje[[#This Row],[Stvarni trošak]]","v":{"v":0,"d":"0 kn"}},null,"Drugo",null,null,{"$f":"Zabava[[#This Row],[Predviđeni trošak]]-Zabava[[#This Row],[Stvarni trošak]]","v":{"v":0,"d":"0 kn"}}]
[null,"Potrepštine",null,null,{"$f":"Stanovanje[[#This Row],[Predviđeni trošak]]-Stanovanje[[#This Row],[Stvarni trošak]]","v":{"v":0,"d":"0 kn"}},null,"Drugo",null,null,{"$f":"Zabava[[#This Row],[Predviđeni trošak]]-Zabava[[#This Row],[Stvarni trošak]]","v":{"v":0,"d":"0 kn"}}]
[null,"Ostalo",null,null,{"$f":"Stanovanje[[#This Row],[Predviđeni trošak]]-Stanovanje[[#This Row],[Stvarni trošak]]","v":{"v":0,"d":"0 kn"}},null,"Zbroj",{"$f":"SUBTOTAL(109,Zabava[Predviđeni trošak])","v":{"v":0,"d":"0 kn"}},{"$f":"SUBTOTAL(109,Zabava[Stvarni trošak])","v":{"v":50,"d":"50 kn"}},{"$f":"SUBTOTAL(109,Zabava[Razlika])","v":{"v":-50,"d":"-50 kn"}}]
[null,"Zbroj",{"$f":"SUBTOTAL(109,Stanovanje[Predviđeni trošak])","v":{"v":1810,"d":"1,810 kn"}},{"$f":"SUBTOTAL(109,Stanovanje[Stvarni trošak])","v":{"v":1740,"d":"1,740 kn"}},{"$f":"SUBTOTAL(109,Stanovanje[Razlika])","v":{"v":70,"d":"70 kn"}}]
[{"$nulls":6},"KREDITI","Predviđeni trošak","Stvarni trošak","Razlika"]
[null,"PRIJEVOZ","Predviđeni trošak","Stvarni trošak","Razlika",null,"Osobne potrebe",null,null,{"$f":"Krediti[[#This Row],[Predviđeni trošak]]-Krediti[[#This Row],[Stvarni trošak]]","v":{"v":0,"d":"0 kn"}}]
[null,"Troškovi vozila",{"v":250,"d":"250 kn"},{"v":250,"d":"250 kn"},{"$f":"Prijevoz[[#This Row],[Predviđeni trošak]]-Prijevoz[[#This Row],[Stvarni trošak]]","v":{"v":0,"d":"0 kn"}},null,"Studentski kredit",null,null,{"$f":"Krediti[[#This Row],[Predviđeni trošak]]-Krediti[[#This Row],[Stvarni trošak]]","v":{"v":0,"d":"0 kn"}}]
[null,"Autobus/taksi",null,null,{"$f":"Prijevoz[[#This Row],[Predviđeni trošak]]-Prijevoz[[#This Row],[Stvarni trošak]]","v":{"v":0,"d":"0 kn"}},null,"Kreditna kartica",null,null,{"$f":"Krediti[[#This Row],[Predviđeni trošak]]-Krediti[[#This Row],[Stvarni trošak]]","v":{"v":0,"d":"0 kn"}}]
[null,"Osiguranje",null,null,{"$f":"Prijevoz[[#This Row],[Predviđeni trošak]]-Prijevoz[[#This Row],[Stvarni trošak]]","v":{"v":0,"d":"0 kn"}},null,"Kreditna kartica",null,null,{"$f":"Krediti[[#This Row],[Predviđeni trošak]]-Krediti[[#This Row],[Stvarni trošak]]","v":{"v":0,"d":"0 kn"}}]
[null,"Registracija",null,null,{"$f":"Prijevoz[[#This Row],[Predviđeni trošak]]-Prijevoz[[#This Row],[Stvarni trošak]]","v":{"v":0,"d":"0 kn"}},null,"Kreditna kartica",null,null,{"$f":"Krediti[[#This Row],[Predviđeni trošak]]-Krediti[[#This Row],[Stvarni trošak]]","v":{"v":0,"d":"0 kn"}}]
[null,"Gorivo",null,null,{"$f":"Prijevoz[[#This Row],[Predviđeni trošak]]-Prijevoz[[#This Row],[Stvarni trošak]]","v":{"v":0,"d":"0 kn"}},null,"Ostalo",null,null,{"$f":"Krediti[[#This Row],[Predviđeni trošak]]-Krediti[[#This Row],[Stvarni trošak]]","v":{"v":0,"d":"0 kn"}}]
[null,"Održavanje",null,null,{"$f":"Prijevoz[[#This Row],[Predviđeni trošak]]-Prijevoz[[#This Row],[Stvarni trošak]]","v":{"v":0,"d":"0 kn"}},null,"Zbroj",{"$f":"SUBTOTAL(109,Krediti[Predviđeni trošak])","v":{"v":0,"d":"0 kn"}},{"$f":"SUBTOTAL(109,Krediti[Stvarni trošak])","v":{"v":0,"d":"0 kn"}},{"$f":"SUBTOTAL(109,Krediti[Razlika])","v":{"v":0,"d":"0 kn"}}]
[null,"Ostalo",null,null,{"$f":"Prijevoz[[#This Row],[Predviđeni trošak]]-Prijevoz[[#This Row],[Stvarni trošak]]","v":{"v":0,"d":"0 kn"}}]
[null,"Zbroj",{"$f":"SUBTOTAL(109,Prijevoz[Predviđeni trošak])","v":{"v":250,"d":"250 kn"}},{"$f":"SUBTOTAL(109,Prijevoz[Stvarni trošak])","v":{"v":250,"d":"250 kn"}},{"$f":"SUBTOTAL(109,Prijevoz[Razlika])","v":{"v":0,"d":"0 kn"}},null,"POREZI","Predviđeni trošak","Stvarni trošak","Razlika"]
[{"$nulls":6},"Savezni",null,null,{"$f":"Porezi[[#This Row],[Predviđeni trošak]]-Porezi[[#This Row],[Stvarni trošak]]","v":{"v":0,"d":"0 kn"}}]
[null,"OSIGURANJE","Predviđeni trošak","Stvarni trošak","Razlika",null,"Državni",null,null,{"$f":"Porezi[[#This Row],[Predviđeni trošak]]-Porezi[[#This Row],[Stvarni trošak]]","v":{"v":0,"d":"0 kn"}}]
[null,"Kuća",null,null,{"$f":"Osiguranje[[#This Row],[Predviđeni trošak]]-Osiguranje[[#This Row],[Stvarni trošak]]","v":{"v":0,"d":"0 kn"}},null,"Lokalni",null,null,{"$f":"Porezi[[#This Row],[Predviđeni trošak]]-Porezi[[#This Row],[Stvarni trošak]]","v":{"v":0,"d":"0 kn"}}]
[null,"Zdravstveno osiguranje",null,null,{"$f":"Osiguranje[[#This Row],[Predviđeni trošak]]-Osiguranje[[#This Row],[Stvarni trošak]]","v":{"v":0,"d":"0 kn"}},null,"Ostalo",null,null,{"$f":"Porezi[[#This Row],[Predviđeni trošak]]-Porezi[[#This Row],[Stvarni trošak]]","v":{"v":0,"d":"0 kn"}}]
[null,"Životno osiguranje",null,null,{"$f":"Osiguranje[[#This Row],[Predviđeni trošak]]-Osiguranje[[#This Row],[Stvarni trošak]]","v":{"v":0,"d":"0 kn"}},null,"Zbroj",{"$f":"SUBTOTAL(109,Porezi[Predviđeni trošak])","v":{"v":0,"d":"0 kn"}},{"$f":"SUBTOTAL(109,Porezi[Stvarni trošak])","v":{"v":0,"d":"0 kn"}},{"$f":"SUBTOTAL(109,Porezi[Razlika])","v":{"v":0,"d":"0 kn"}}]
[null,"Ostalo",null,null,{"$f":"Osiguranje[[#This Row],[Predviđeni trošak]]-Osiguranje[[#This Row],[Stvarni trošak]]","v":{"v":0,"d":"0 kn"}}]
[null,"Zbroj",{"$f":"SUBTOTAL(109,Osiguranje[Predviđeni trošak])","v":{"v":0,"d":"0 kn"}},{"$f":"SUBTOTAL(109,Osiguranje[Stvarni trošak])","v":{"v":0,"d":"0 kn"}},{"$f":"SUBTOTAL(109,Osiguranje[Razlika])","v":{"v":0,"d":"0 kn"}},null,"ŠTEDNJA ILI ULAGANJA","Predviđeni trošak","Stvarni trošak","Razlika"]
[{"$nulls":6},"Mirovinska štednja",null,null,{"$f":"Štednja_ili_ulaganja[[#This Row],[Predviđeni trošak]]-Štednja_ili_ulaganja[[#This Row],[Stvarni trošak]]","v":{"v":0,"d":"0 kn"}}]
[null,"HRANA","Predviđeni trošak","Stvarni trošak","Razlika",null,"Investicijski račun",null,null,{"$f":"Štednja_ili_ulaganja[[#This Row],[Predviđeni trošak]]-Štednja_ili_ulaganja[[#This Row],[Stvarni trošak]]","v":{"v":0,"d":"0 kn"}}]
[null,"Namirnice",null,null,{"$f":"Hrana[[#This Row],[Predviđeni trošak]]-Hrana[[#This Row],[Stvarni trošak]]","v":{"v":0,"d":"0 kn"}},null,"Drugo",null,null,{"$f":"Štednja_ili_ulaganja[[#This Row],[Predviđeni trošak]]-Štednja_ili_ulaganja[[#This Row],[Stvarni trošak]]","v":{"v":0,"d":"0 kn"}}]
[null,"Restorani",null,null,{"$f":"Hrana[[#This Row],[Predviđeni trošak]]-Hrana[[#This Row],[Stvarni trošak]]","v":{"v":0,"d":"0 kn"}},null,"Zbroj",{"$f":"SUBTOTAL(109,Štednja_ili_ulaganja[Predviđeni trošak])","v":{"v":0,"d":"0 kn"}},{"$f":"SUBTOTAL(109,Štednja_ili_ulaganja[Stvarni trošak])","v":{"v":0,"d":"0 kn"}},{"$f":"SUBTOTAL(109,Štednja_ili_ulaganja[Razlika])","v":{"v":0,"d":"0 kn"}}]
[null,"Ostalo",null,null,{"$f":"Hrana[[#This Row],[Predviđeni trošak]]-Hrana[[#This Row],[Stvarni trošak]]","v":{"v":0,"d":"0 kn"}}]
[null,"Zbroj",{"$f":"SUBTOTAL(109,Hrana[Predviđeni trošak])","v":{"v":0,"d":"0 kn"}},{"$f":"SUBTOTAL(109,Hrana[Stvarni trošak])","v":{"v":0,"d":"0 kn"}},{"$f":"SUBTOTAL(109,Hrana[Razlika])","v":{"v":0,"d":"0 kn"}},null,"DAROVI I DONACIJE","Predviđeni trošak","Stvarni trošak","Razlika"]
[{"$nulls":6},"Dobrotvorna udruga 1",null,null,{"$f":"Darovi_i_donacije[[#This Row],[Predviđeni trošak]]-Darovi_i_donacije[[#This Row],[Stvarni trošak]]","v":{"v":0,"d":"0 kn"}}]
[null,"KUĆNI LJUBIMCI","Predviđeni trošak","Stvarni trošak","Razlika",null,"Dobrotvorna udruga 2",null,null,{"$f":"Darovi_i_donacije[[#This Row],[Predviđeni trošak]]-Darovi_i_donacije[[#This Row],[Stvarni trošak]]","v":{"v":0,"d":"0 kn"}}]
[null,"Hrana",null,null,{"$f":"Kućni_ljubimci[[#This Row],[Predviđeni trošak]]-Kućni_ljubimci[[#This Row],[Stvarni trošak]]","v":{"v":0,"d":"0 kn"}},null,"Dobrotvorna udruga 3",null,null,{"$f":"Darovi_i_donacije[[#This Row],[Predviđeni trošak]]-Darovi_i_donacije[[#This Row],[Stvarni trošak]]","v":{"v":0,"d":"0 kn"}}]
[null,"Liječnički troškovi",null,null,{"$f":"Kućni_ljubimci[[#This Row],[Predviđeni trošak]]-Kućni_ljubimci[[#This Row],[Stvarni trošak]]","v":{"v":0,"d":"0 kn"}},null,"Zbroj",{"$f":"SUBTOTAL(109,Darovi_i_donacije[Predviđeni trošak])","v":{"v":0,"d":"0 kn"}},{"$f":"SUBTOTAL(109,Darovi_i_donacije[Stvarni trošak])","v":{"v":0,"d":"0 kn"}},{"$f":"SUBTOTAL(109,Darovi_i_donacije[Razlika])","v":{"v":0,"d":"0 kn"}}]
[null,"Njega ljubimaca",null,null,{"$f":"Kućni_ljubimci[[#This Row],[Predviđeni trošak]]-Kućni_ljubimci[[#This Row],[Stvarni trošak]]","v":{"v":0,"d":"0 kn"}}]
[null,"Igračke",null,null,{"$f":"Kućni_ljubimci[[#This Row],[Predviđeni trošak]]-Kućni_ljubimci[[#This Row],[Stvarni trošak]]","v":{"v":0,"d":"0 kn"}},null,"PRAVNI TROŠKOVI","Predviđeni trošak","Stvarni trošak","Razlika"]
[null,"Ostalo",null,null,{"$f":"Kućni_ljubimci[[#This Row],[Predviđeni trošak]]-Kućni_ljubimci[[#This Row],[Stvarni trošak]]","v":{"v":0,"d":"0 kn"}},null,"Odvjetnik",null,null,{"$f":"Pravni_troškovi[[#This Row],[Predviđeni trošak]]-Pravni_troškovi[[#This Row],[Stvarni trošak]]","v":{"v":0,"d":"0 kn"}}]
[null,"Zbroj",{"$f":"SUBTOTAL(109,Kućni_ljubimci[Predviđeni trošak])","v":{"v":0,"d":"0 kn"}},{"$f":"SUBTOTAL(109,Kućni_ljubimci[Stvarni trošak])","v":{"v":0,"d":"0 kn"}},{"$f":"SUBTOTAL(109,Kućni_ljubimci[Razlika])","v":{"v":0,"d":"0 kn"}},null,"Alimentacija",null,null,{"$f":"Pravni_troškovi[[#This Row],[Predviđeni trošak]]-Pravni_troškovi[[#This Row],[Stvarni trošak]]","v":{"v":0,"d":"0 kn"}}]
[{"$nulls":6},"Otplate zaloga ili ovrha",null,null,{"$f":"Pravni_troškovi[[#This Row],[Predviđeni trošak]]-Pravni_troškovi[[#This Row],[Stvarni trošak]]","v":{"v":0,"d":"0 kn"}}]
[null,"OSOBNA NJEGA","Predviđeni trošak","Stvarni trošak","Razlika",null,"Drugo",null,null,{"$f":"Pravni_troškovi[[#This Row],[Predviđeni trošak]]-Pravni_troškovi[[#This Row],[Stvarni trošak]]","v":{"v":0,"d":"0 kn"}}]
[null,"Liječnički troškovi",null,null,{"$f":"Osobna_njega[[#This Row],[Predviđeni trošak]]-Osobna_njega[[#This Row],[Stvarni trošak]]","v":{"v":0,"d":"0 kn"}},null,"Zbroj",{"$f":"SUBTOTAL(109,Pravni_troškovi[Predviđeni trošak])","v":{"v":0,"d":"0 kn"}},{"$f":"SUBTOTAL(109,Pravni_troškovi[Stvarni trošak])","v":{"v":0,"d":"0 kn"}},{"$f":"SUBTOTAL(109,Pravni_troškovi[Razlika])","v":{"v":0,"d":"0 kn"}}]
[null,"Frizura/manikura",null,null,{"$f":"Osobna_njega[[#This Row],[Predviđeni trošak]]-Osobna_njega[[#This Row],[Stvarni trošak]]","v":{"v":0,"d":"0 kn"}}]
[null,"Odjeća",null,null,{"$f":"Osobna_njega[[#This Row],[Predviđeni trošak]]-Osobna_njega[[#This Row],[Stvarni trošak]]","v":{"v":0,"d":"0 kn"}}]
[null,"Čišćenje odjeće",null,null,{"$f":"Osobna_njega[[#This Row],[Predviđeni trošak]]-Osobna_njega[[#This Row],[Stvarni trošak]]","v":{"v":0,"d":"0 kn"}}]
[null,"Teretana",null,null,{"$f":"Osobna_njega[[#This Row],[Predviđeni trošak]]-Osobna_njega[[#This Row],[Stvarni trošak]]","v":{"v":0,"d":"0 kn"}}]
[null,"Članarine ili naknade",null,null,{"$f":"Osobna_njega[[#This Row],[Predviđeni trošak]]-Osobna_njega[[#This Row],[Stvarni trošak]]","v":{"v":0,"d":"0 kn"}}]
[null,"Ostalo",null,null,{"$f":"Osobna_njega[[#This Row],[Predviđeni trošak]]-Osobna_njega[[#This Row],[Stvarni trošak]]","v":{"v":0,"d":"0 kn"}}]
[null,"Zbroj",{"$f":"SUBTOTAL(109,Osobna_njega[Predviđeni trošak])","v":{"v":0,"d":"0 kn"}},{"$f":"SUBTOTAL(109,Osobna_njega[Stvarni trošak])","v":{"v":0,"d":"0 kn"}},{"$f":"SUBTOTAL(109,Osobna_njega[Razlika])","v":{"v":0,"d":"0 kn"}}]